[Event "Elite Hotels Open 2024"]
[Site "Elite Stadshotellet, Kungsgatan 6, Vaxjo, Sweden"]
[Date "2024.02.11"]
[Round "8.6"]
[White "Jacobsen, Mikkel Manosri"]
[Black "Muntean, Victor"]
[Result "1-0"]
[TimeControl "15 minutes + 5 seconds per move from move one (Round 1 - 4) / 90 minutes + 30 seconds per move from move one (Round 5 - 8)"]
[WhiteTitle "FM"]
[WhiteFideId "1444514"]
[BlackFideId "1054414"]
[WhiteElo "2374"]
[BlackElo "2106"]

1. c4 {[%clk 01:30:57]} {[%emt 00:00:02]} f5 {[%clk 01:30:29]} {[%emt
00:00:31]} 2. g3 {[%clk 01:31:15]} {[%emt 00:00:12]} Nf6 {[%clk 01:30:48]}
{[%emt 00:00:11]} 3. Bg2 {[%clk 01:31:41]} {[%emt 00:00:04]} e6 {[%clk
01:30:15]} {[%emt 00:01:03]} 4. Nf3 {[%clk 01:32:02]} {[%emt 00:00:08]} Be7
{[%clk 01:28:42]} {[%emt 00:02:04]} 5. O-O {[%clk 01:32:26]} {[%emt 00:00:06]}
O-O {[%clk 01:29:03]} {[%emt 00:00:08]} 6. Nc3 {[%clk 01:32:53]} {[%emt
00:00:03]} Nc6 {[%clk 01:27:06]} {[%emt 00:02:28]} 7. d3 {[%clk 01:28:38]}
{[%emt 00:04:44]} a6 {[%clk 01:25:38]} {[%emt 00:01:59]} 8. a3 {[%clk
01:26:01]} {[%emt 00:03:06]} d6 {[%clk 01:22:44]} {[%emt 00:03:24]} 9. b4
{[%clk 01:26:14]} {[%emt 00:00:18]} Ne5 {[%clk 01:21:39]} {[%emt 00:01:36]} 10.
Nxe5 {[%clk 01:25:07]} {[%emt 00:01:36]} dxe5 {[%clk 01:22:02]} {[%emt
00:00:07]} 11. Bb2 {[%clk 01:25:31]} {[%emt 00:00:06]} c5 {[%clk 01:21:07]}
{[%emt 00:01:25]} 12. Qb3 {[%clk 01:24:07]} {[%emt 00:01:54]} Qc7 {[%clk
01:19:08]} {[%emt 00:02:30]} 13. Na4 {[%clk 01:19:54]} {[%emt 00:04:42]} Nd7
{[%clk 01:17:15]} {[%emt 00:02:24]} 14. bxc5 {[%clk 01:20:07]} {[%emt
00:00:17]} Rb8 {[%clk 01:15:26]} {[%emt 00:02:19]} 15. e3 {[%clk 01:01:33]}
{[%emt 00:19:04]} Nxc5 {[%clk 01:08:45]} {[%emt 00:07:11]} 16. Nxc5 {[%clk
01:01:58]} {[%emt 00:00:04]} Qxc5 {[%clk 01:07:39]} {[%emt 00:01:36]} 17. Qb4
{[%clk 00:57:56]} {[%emt 00:04:33]} Qxb4 {[%clk 01:05:43]} {[%emt 00:02:26]} 18.
axb4 {[%clk 00:58:24]} {[%emt 00:00:02]} Bf6 {[%clk 01:05:59]} {[%emt
00:00:14]} 19. Ra5 {[%clk 00:56:34]} {[%emt 00:02:19]} Rd8 {[%clk 01:05:06]}
{[%emt 00:01:23]} 20. Rd1 {[%clk 00:40:58]} {[%emt 00:16:06]} e4 {[%clk
01:03:12]} {[%emt 00:02:25]} 21. Bxf6 {[%clk 00:40:55]} {[%emt 00:00:33]} gxf6
{[%clk 01:03:37]} {[%emt 00:00:05]} 22. d4 {[%clk 00:37:36]} {[%emt 00:03:49]}
b6 {[%clk 01:03:22]} {[%emt 00:00:45]} 23. Raa1 {[%clk 00:38:02]} {[%emt
00:00:05]} Bb7 {[%clk 01:03:33]} {[%emt 00:00:18]} 24. Bf1 {[%clk 00:38:26]}
{[%emt 00:00:06]} Rbc8 {[%clk 01:02:02]} {[%emt 00:02:01]} 25. Kg2 {[%clk
00:37:28]} {[%emt 00:01:28]} Kf7 {[%clk 01:01:37]} {[%emt 00:00:55]} 26. Be2
{[%clk 00:37:40]} {[%emt 00:00:17]} Ke7 {[%clk 01:01:06]} {[%emt 00:01:01]} 27.
Kh3 {[%clk 00:35:41]} {[%emt 00:02:29]} Rc7 {[%clk 00:58:49]} {[%emt 00:02:47]}
28. c5 {[%clk 00:34:01]} {[%emt 00:02:10]} b5 {[%clk 00:58:52]} {[%emt
00:00:28]} 29. Bh5 {[%clk 00:32:33]} {[%emt 00:01:57]} Rg8 {[%clk 00:54:24]}
{[%emt 00:04:58]} 30. Rg1 {[%clk 00:32:04]} {[%emt 00:00:58]} Bc8 {[%clk
00:48:58]} {[%emt 00:05:57]} 31. g4 {[%clk 00:31:18]} {[%emt 00:01:16]} fxg4+
{[%clk 00:46:21]} {[%emt 00:03:07]} 32. Rxg4 {[%clk 00:30:47]} {[%emt
00:01:01]} Rxg4 {[%clk 00:40:55]} {[%emt 00:05:56]} 33. Bxg4 {[%clk 00:31:08]}
{[%emt 00:00:09]} f5 {[%clk 00:40:57]} {[%emt 00:00:29]} 34. Bh5 {[%clk
00:30:48]} {[%emt 00:00:49]} Kf6 {[%clk 00:41:02]} {[%emt 00:00:26]} 35. Rg1
{[%clk 00:30:48]} {[%emt 00:00:30]} Bb7 {[%clk 00:35:38]} {[%emt 00:05:54]} 36.
Rg8 {[%clk 00:27:16]} {[%emt 00:04:02]} Rc8 {[%clk 00:35:59]} {[%emt 00:00:09]}
37. Rxc8 {[%clk 00:26:57]} {[%emt 00:00:48]} Bxc8 {[%clk 00:36:25]} {[%emt
00:00:04]} 38. Be8 {[%clk 00:27:22]} {[%emt 00:00:05]} Bb7 {[%clk 00:35:36]}
{[%emt 00:01:19]} 39. Kg3 {[%clk 00:25:30]} {[%emt 00:02:22]} Ke7 {[%clk
00:35:19]} {[%emt 00:00:47]} 40. Bh5 {[%clk 00:25:46]} {[%emt 00:00:14]} Bd5
{[%clk 00:32:46]} {[%emt 00:03:04]} 41. Kf4 {[%clk 00:16:36]} {[%emt 00:09:40]}
Bc4 {[%clk 00:30:38]} {[%emt 00:02:38]} 42. Ke5 {[%clk 00:16:31]} {[%emt
00:00:35]} Kd7 {[%clk 00:22:32]} {[%emt 00:08:36]} 43. Bf7 {[%clk 00:09:32]}
{[%emt 00:07:27]} a5 {[%clk 00:17:15]} {[%emt 00:05:48]} 44. bxa5 {[%clk
00:09:55]} {[%emt 00:00:08]} b4 {[%clk 00:17:40]} {[%emt 00:00:05]} 45. a6
{[%clk 00:10:14]} {[%emt 00:00:10]} Kc7 {[%clk 00:17:06]} {[%emt 00:01:05]} 46.
Bxe6 {[%clk 00:10:03]} {[%emt 00:00:40]} Bxe6 {[%clk 00:17:18]} {[%emt
00:00:18]} 47. Kxe6 {[%clk 00:10:29]} {[%emt 00:00:04]} b3 {[%clk 00:17:39]}
{[%emt 00:00:09]} 48. a7 {[%clk 00:10:32]} {[%emt 00:00:27]} Kb7 {[%clk
00:18:04]} {[%emt 00:00:05]} 49. c6+ {[%clk 00:10:55]} {[%emt 00:00:07]} Kxa7
{[%clk 00:18:30]} {[%emt 00:00:05]} 50. c7 {[%clk 00:11:22]} {[%emt 00:00:03]}
b2 {[%clk 00:18:52]} {[%emt 00:00:08]} 51. c8=Q {[%clk 00:11:44]} {[%emt
00:00:07]} b1=Q {[%clk 00:19:16]} {[%emt 00:00:06]} 52. Qc7+ {[%clk 00:10:52]}
{[%emt 00:01:22]} Ka8 {[%clk 00:19:30]} {[%emt 00:00:16]} 53. Qc6+ {[%clk
00:11:10]} {[%emt 00:00:12]} Ka7 {[%clk 00:19:38]} {[%emt 00:00:22]} 54. Kxf5
{[%clk 00:10:50]} {[%emt 00:00:50]} Qg1 {[%clk 00:19:37]} {[%emt 00:00:30]} 55.
Qc7+ {[%clk 00:11:06]} {[%emt 00:00:14]} Ka8 {[%clk 00:19:46]} {[%emt
00:00:21]} 56. Qg3 {[%clk 00:11:29]} {[%emt 00:00:06]} Qh1 {[%clk 00:19:27]}
{[%emt 00:00:50]} 57. Qg8+ {[%clk 00:11:48]} {[%emt 00:00:11]} Ka7 {[%clk
00:19:54]} {[%emt 00:00:04]} 58. Qxh7+ {[%clk 00:12:12]} {[%emt 00:00:06]} Ka8
{[%clk 00:20:19]} {[%emt 00:00:05]} 59. Qg8+ {[%clk 00:12:33]} {[%emt
00:00:09]} Ka7 {[%clk 00:20:41]} {[%emt 00:00:09]} 60. Qg3 {[%clk 00:12:49]}
{[%emt 00:00:14]} 1-0

[Event "Elite Hotels Open 2024"]
[Site "Elite Stadshotellet, Kungsgatan 6, Vaxjo, Sweden"]
[Date "2024.02.11"]
[Round "8.7"]
[White "Hector, Jonny"]
[Black "Fransson, Patrick"]
[Result "1-0"]
[TimeControl "15 minutes + 5 seconds per move from move one (Round 1 - 4) / 90 minutes + 30 seconds per move from move one (Round 5 - 8)"]
[WhiteTitle "GM"]
[WhiteFideId "1700090"]
[BlackFideId "1709305"]
[WhiteElo "2449"]
[BlackElo "2086"]

1. e4 {[%clk 01:30:55]} {[%emt 00:00:03]} c6 {[%clk 01:30:21]} {[%emt
00:00:41]} 2. Nc3 {[%clk 01:31:19]} {[%emt 00:00:05]} d5 {[%clk 01:30:27]}
{[%emt 00:00:24]} 3. Nf3 {[%clk 01:31:43]} {[%emt 00:00:05]} e6 {[%clk
01:30:15]} {[%emt 00:00:43]} 4. d4 {[%clk 01:31:52]} {[%emt 00:00:21]} Nf6
{[%clk 01:30:07]} {[%emt 00:00:39]} 5. Bd3 {[%clk 01:31:34]} {[%emt 00:00:47]}
dxe4 {[%clk 01:27:29]} {[%emt 00:03:08]} 6. Nxe4 {[%clk 01:31:54]} {[%emt
00:00:09]} Nxe4 {[%clk 01:27:39]} {[%emt 00:00:22]} 7. Bxe4 {[%clk 01:32:18]}
{[%emt 00:00:04]} Bd6 {[%clk 01:25:56]} {[%emt 00:02:14]} 8. Qe2 {[%clk
01:30:04]} {[%emt 00:02:44]} Nd7 {[%clk 01:21:53]} {[%emt 00:04:33]} 9. Bd2
{[%clk 01:28:22]} {[%emt 00:02:12]} Nf6 {[%clk 01:21:33]} {[%emt 00:00:51]} 10.
Bd3 {[%clk 01:28:36]} {[%emt 00:00:15]} Nd5 {[%clk 01:18:30]} {[%emt 00:03:34]}
11. g3 {[%clk 01:24:37]} {[%emt 00:04:29]} Qc7 {[%clk 01:03:51]} {[%emt
00:15:10]} 12. c4 {[%clk 01:20:38]} {[%emt 00:04:28]} Nf6 {[%clk 01:03:23]}
{[%emt 00:00:58]} 13. O-O {[%clk 01:16:33]} {[%emt 00:04:34]} b6 {[%clk
01:02:21]} {[%emt 00:01:33]} 14. c5 {[%clk 01:13:05]} {[%emt 00:03:57]} bxc5
{[%clk 01:00:05]} {[%emt 00:02:47]} 15. dxc5 {[%clk 01:13:20]} {[%emt
00:00:15]} Bxc5 {[%clk 00:59:02]} {[%emt 00:01:34]} 16. Rac1 {[%clk 01:13:10]}
{[%emt 00:00:39]} Nd7 {[%clk 00:54:12]} {[%emt 00:05:21]} 17. Be4 {[%clk
01:06:49]} {[%emt 00:06:50]} Bb7 {[%clk 00:49:40]} {[%emt 00:05:03]} 18. Rfd1
{[%clk 00:57:45]} {[%emt 00:09:33]} Be7 {[%clk 00:35:57]} {[%emt 00:14:15]} 19.
Bf4 {[%clk 00:53:52]} {[%emt 00:04:21]} Qc8 {[%clk 00:35:22]} {[%emt 00:01:05]}
20. Rxd7 {[%clk 00:51:22]} {[%emt 00:03:00]} Qxd7 {[%clk 00:33:36]} {[%emt
00:02:18]} 21. Ne5 {[%clk 00:51:39]} {[%emt 00:00:13]} Qd8 {[%clk 00:30:46]}
{[%emt 00:03:20]} 22. Nxc6 {[%clk 00:48:09]} {[%emt 00:03:59]} Bxc6 {[%clk
00:27:36]} {[%emt 00:03:41]} 23. Bxc6+ {[%clk 00:48:27]} {[%emt 00:00:11]} Kf8
{[%clk 00:28:04]} {[%emt 00:00:04]} 24. Bxa8 {[%clk 00:48:35]} {[%emt
00:00:21]} Qxa8 {[%clk 00:28:28]} {[%emt 00:00:07]} 25. Qa6 {[%clk 00:48:43]}
{[%emt 00:00:22]} Bd8 {[%clk 00:28:43]} {[%emt 00:00:15]} 26. Rc8 {[%clk
00:48:53]} {[%emt 00:00:18]} Qd5 {[%clk 00:29:03]} {[%emt 00:00:12]} 27. Bd6+
{[%clk 00:49:14]} {[%emt 00:00:08]} Ke8 {[%clk 00:29:24]} {[%emt 00:00:10]} 28.
Qa4+ {[%clk 00:49:36]} {[%emt 00:00:07]} 1-0

[Event "Elite Hotels Open 2024"]
[Site "Elite Stadshotellet, Kungsgatan 6, Vaxjo, Sweden"]
[Date "2024.02.11"]
[Round "8.8"]
[White "Karlsson, Jorgen"]
[Black "Olsson, William"]
[Result "0-1"]
[TimeControl "15 minutes + 5 seconds per move from move one (Round 1 - 4) / 90 minutes + 30 seconds per move from move one (Round 5 - 8)"]
[BlackTitle "FM"]
[WhiteFideId "1711679"]
[BlackFideId "1741721"]
[WhiteElo "2056"]
[BlackElo "2373"]

1. b3 {[%clk 01:30:58]} {[%emt 00:00:01]} c5 {[%clk 01:30:51]} {[%emt
00:00:10]} 2. Bb2 {[%clk 01:30:55]} {[%emt 00:00:32]} Nc6 {[%clk 01:31:16]}
{[%emt 00:00:05]} 3. e4 {[%clk 01:30:31]} {[%emt 00:00:54]} e5 {[%clk
01:31:42]} {[%emt 00:00:05]} 4. Nf3 {[%clk 01:28:36]} {[%emt 00:02:24]} d6
{[%clk 01:31:49]} {[%emt 00:00:22]} 5. Bc4 {[%clk 01:28:26]} {[%emt 00:00:41]}
Be7 {[%clk 01:31:45]} {[%emt 00:00:33]} 6. c3 {[%clk 01:26:06]} {[%emt
00:02:51]} Nf6 {[%clk 01:31:54]} {[%emt 00:00:21]} 7. Qe2 {[%clk 01:26:18]}
{[%emt 00:00:17]} O-O {[%clk 01:31:13]} {[%emt 00:01:11]} 8. h3 {[%clk
01:24:44]} {[%emt 00:02:05]} a6 {[%clk 01:29:41]} {[%emt 00:02:02]} 9. O-O
{[%clk 01:21:02]} {[%emt 00:04:12]} b5 {[%clk 01:28:51]} {[%emt 00:01:20]} 10.
Bd3 {[%clk 01:17:00]} {[%emt 00:04:32]} Nh5 {[%clk 01:28:35]} {[%emt 00:00:46]}
11. Bc2 {[%clk 01:16:34]} {[%emt 00:00:56]} Nf4 {[%clk 01:29:00]} {[%emt
00:00:05]} 12. Qe3 {[%clk 01:16:28]} {[%emt 00:00:36]} Bg5 {[%clk 01:28:42]}
{[%emt 00:00:48]} 13. Kh2 {[%clk 01:10:52]} {[%emt 00:06:06]} Bh6 {[%clk
01:23:33]} {[%emt 00:05:39]} 14. Qe1 {[%clk 01:11:07]} {[%emt 00:00:15]} Qf6
{[%clk 01:23:59]} {[%emt 00:00:04]} 15. d4 {[%clk 01:08:53]} {[%emt 00:02:43]}
Nxg2 {[%clk 01:23:00]} {[%emt 00:01:29]} 16. Kxg2 {[%clk 01:08:04]} {[%emt
00:01:19]} Bxh3+ {[%clk 01:23:26]} {[%emt 00:00:06]} 17. Kxh3 {[%clk 01:07:06]}
{[%emt 00:01:27]} Qxf3+ {[%clk 01:23:52]} {[%emt 00:00:05]} 18. Kh2 {[%clk
01:07:24]} {[%emt 00:00:11]} Bf4+ {[%clk 01:24:19]} {[%emt 00:00:04]} 19. Kg1
{[%clk 01:07:31]} {[%emt 00:00:22]} Qg4+ {[%clk 01:24:46]} {[%emt 00:00:03]}
0-1

[Event "Elite Hotels Open 2024"]
[Site "Elite Stadshotellet, Kungsgatan 6, Vaxjo, Sweden"]
[Date "2024.02.11"]
[Round "8.9"]
[White "Kistrup, Nicolai"]
[Black "Mashhadi, Peyman"]
[Result "1/2-1/2"]
[TimeControl "15 minutes + 5 seconds per move from move one (Round 1 - 4) / 90 minutes + 30 seconds per move from move one (Round 5 - 8)"]
[WhiteTitle "FM"]
[WhiteFideId "1444816"]
[BlackFideId "1768581"]
[WhiteElo "2326"]
[BlackElo "2073"]

1. d4 {[%clk 01:30:59]} g6 {[%clk 01:30:44]} {[%emt 00:00:16]} 2. e4 {[%clk
01:30:53]} {[%emt 00:00:36]} d6 {[%clk 01:30:35]} {[%emt 00:00:38]} 3. c4
{[%clk 01:30:57]} {[%emt 00:00:27]} Nf6 {[%clk 01:30:11]} {[%emt 00:00:54]} 4.
Nc3 {[%clk 01:31:09]} {[%emt 00:00:18]} Bg7 {[%clk 01:30:30]} {[%emt 00:00:10]}
5. h3 {[%clk 01:31:31]} {[%emt 00:00:09]} O-O {[%clk 01:29:44]} {[%emt
00:01:15]} 6. Be3 {[%clk 01:31:58]} {[%emt 00:00:04]} Na6 {[%clk 01:26:09]}
{[%emt 00:04:06]} 7. g4 {[%clk 01:31:59]} {[%emt 00:00:29]} e5 {[%clk
01:25:39]} {[%emt 00:01:00]} 8. d5 {[%clk 01:32:25]} {[%emt 00:00:05]} Nc5
{[%clk 01:25:40]} {[%emt 00:00:29]} 9. f3 {[%clk 01:32:46]} {[%emt 00:00:09]}
a5 {[%clk 01:25:41]} {[%emt 00:00:29]} 10. Qd2 {[%clk 01:33:01]} {[%emt
00:00:15]} c6 {[%clk 01:25:36]} {[%emt 00:00:35]} 11. O-O-O {[%clk 01:33:08]}
{[%emt 00:00:22]} cxd5 {[%clk 01:25:26]} {[%emt 00:00:40]} 12. cxd5 {[%clk
01:33:32]} {[%emt 00:00:05]} Bd7 {[%clk 01:23:33]} {[%emt 00:02:24]} 13. Kb1
{[%clk 01:33:51]} {[%emt 00:00:11]} a4 {[%clk 01:22:23]} {[%emt 00:01:40]} 14.
a3 {[%clk 01:33:33]} {[%emt 00:00:48]} Qa5 {[%clk 01:11:47]} {[%emt 00:11:06]}
15. Qg2 {[%clk 01:33:57]} {[%emt 00:00:05]} Rfc8 {[%clk 01:06:31]} {[%emt
00:05:46]} 16. Nge2 {[%clk 01:14:24]} {[%emt 00:20:02]} Ra6 {[%clk 01:01:24]}
{[%emt 00:05:38]} 17. Nc1 {[%clk 01:10:16]} {[%emt 00:04:38]} Raa8 {[%clk
00:57:55]} {[%emt 00:03:59]} 18. N1a2 {[%clk 01:07:20]} {[%emt 00:03:25]} Nb3
{[%clk 00:54:45]} {[%emt 00:03:40]} 19. Qf2 {[%clk 01:06:22]} {[%emt 00:01:28]}
Qd8 {[%clk 00:53:18]} {[%emt 00:01:57]} 20. Nb4 {[%clk 01:02:33]} {[%emt
00:04:19]} Qe7 {[%clk 00:49:42]} {[%emt 00:04:06]} 21. Bd3 {[%clk 00:58:02]}
{[%emt 00:05:02]} Rc7 {[%clk 00:45:43]} {[%emt 00:04:29]} 22. Rh2 {[%clk
00:56:38]} {[%emt 00:01:53]} Be8 {[%clk 00:43:19]} {[%emt 00:02:54]} 23. Rg1
{[%clk 00:50:40]} {[%emt 00:06:28]} Nd7 {[%clk 00:40:19]} {[%emt 00:03:30]} 24.
h4 {[%clk 00:34:42]} {[%emt 00:16:29]} h6 {[%clk 00:36:33]} {[%emt 00:04:16]}
25. Rd1 {[%clk 00:27:57]} {[%emt 00:07:15]} Ndc5 {[%clk 00:33:44]} {[%emt
00:03:18]} 26. Bf1 {[%clk 00:26:39]} {[%emt 00:01:48]} Rb8 {[%clk 00:31:22]}
{[%emt 00:02:52]} 27. Nd3 {[%clk 00:24:42]} {[%emt 00:02:27]} Nxd3 {[%clk
00:30:47]} {[%emt 00:01:05]} 28. Bxd3 {[%clk 00:24:49]} {[%emt 00:00:23]} Nc5
{[%clk 00:26:19]} {[%emt 00:04:58]} 29. Bf1 {[%clk 00:24:40]} {[%emt 00:00:39]}
Bd7 {[%clk 00:25:20]} {[%emt 00:01:29]} 30. Nb5 {[%clk 00:23:00]} {[%emt
00:02:10]} Rcc8 {[%clk 00:24:29]} {[%emt 00:01:20]} 31. Qd2 {[%clk 00:22:28]}
{[%emt 00:01:03]} Kh7 {[%clk 00:22:44]} {[%emt 00:02:15]} 32. h5 {[%clk
00:20:27]} {[%emt 00:02:32]} g5 {[%clk 00:22:41]} {[%emt 00:00:32]} 33. Qb4
{[%clk 00:20:37]} {[%emt 00:00:20]} Bf8 {[%clk 00:20:14]} {[%emt 00:02:57]} 34.
Rc2 {[%clk 00:19:41]} {[%emt 00:01:26]} b6 {[%clk 00:18:19]} {[%emt 00:02:25]}
35. Na7 {[%clk 00:10:46]} {[%emt 00:09:25]} Rc7 {[%clk 00:15:13]} {[%emt
00:03:36]} 36. Nb5 {[%clk 00:09:41]} {[%emt 00:01:35]} Rcc8 {[%clk 00:15:07]}
{[%emt 00:00:36]} 37. Nc3 {[%clk 00:08:50]} {[%emt 00:01:21]} b5 {[%clk
00:12:25]} {[%emt 00:03:12]} 38. Na2 {[%clk 00:09:12]} {[%emt 00:00:08]} Qd8
{[%clk 00:11:15]} {[%emt 00:01:40]} 39. Rdc1 {[%clk 00:08:52]} {[%emt
00:00:50]} Be7 {[%clk 00:10:16]} {[%emt 00:01:28]} 40. Qe1 {[%clk 00:09:00]}
{[%emt 00:00:23]} Qb6 {[%clk 00:07:10]} {[%emt 00:03:36]} 41. Nb4 {[%clk
00:09:16]} {[%emt 00:00:14]} Qa5 {[%clk 00:06:39]} {[%emt 00:01:02]} 42. Qf2
{[%clk 00:09:21]} {[%emt 00:00:24]} Be8 {[%clk 00:05:23]} {[%emt 00:01:46]} 43.
Nd3 {[%clk 00:08:12]} {[%emt 00:01:39]} Nxd3 {[%clk 00:05:19]} {[%emt
00:00:34]} 44. Bxd3 {[%clk 00:08:05]} {[%emt 00:00:37]} Rxc2 {[%clk 00:05:17]}
{[%emt 00:00:32]} 45. Rxc2 {[%clk 00:07:04]} {[%emt 00:01:31]} Bd8 {[%clk
00:05:15]} {[%emt 00:00:32]} 46. Bd2 {[%clk 00:07:09]} {[%emt 00:00:24]} Qa6
{[%clk 00:04:15]} {[%emt 00:01:30]} 47. Bb4 {[%clk 00:07:27]} {[%emt 00:00:12]}
Kg8 {[%clk 00:03:44]} {[%emt 00:01:01]} 48. Qe3 {[%clk 00:06:36]} {[%emt
00:01:21]} Bb6 {[%clk 00:03:16]} {[%emt 00:00:59]} 49. Qc1 {[%clk 00:06:36]}
{[%emt 00:00:30]} Bd8 {[%clk 00:03:39]} {[%emt 00:00:08]} 50. Qe3 {[%clk
00:06:34]} {[%emt 00:00:31]} Bb6 {[%clk 00:04:05]} {[%emt 00:00:04]} 51. Qc1
{[%clk 00:07:00]} {[%emt 00:00:05]} Bd8 {[%clk 00:04:18]} {[%emt 00:00:16]}
1/2-1/2

[Event "Elite Hotels Open 2024"]
[Site "Elite Stadshotellet, Kungsgatan 6, Vaxjo, Sweden"]
[Date "2024.02.11"]
[Round "8.10"]
[White "Ljung, Harald"]
[Black "Kristensen, Kaare Hove"]
[Result "1/2-1/2"]
[TimeControl "15 minutes + 5 seconds per move from move one (Round 1 - 4) / 90 minutes + 30 seconds per move from move one (Round 5 - 8)"]
[BlackTitle "IM"]
[WhiteFideId "1738178"]
[BlackFideId "1400940"]
[WhiteElo "2098"]
[BlackElo "2324"]

1. d4 {[%clk 01:30:57]} {[%emt 00:00:02]} d5 {[%clk 01:30:12]} {[%emt
00:00:48]} 2. c4 {[%clk 01:30:36]} {[%emt 00:00:52]} e6 {[%clk 01:30:11]}
{[%emt 00:00:31]} 3. Nf3 {[%clk 01:30:43]} {[%emt 00:00:22]} a6 {[%clk
01:28:00]} {[%emt 00:02:42]} 4. cxd5 {[%clk 01:30:09]} {[%emt 00:01:05]} exd5
{[%clk 01:28:21]} {[%emt 00:00:08]} 5. Nc3 {[%clk 01:30:25]} {[%emt 00:00:13]}
c6 {[%clk 01:28:17]} {[%emt 00:00:35]} 6. Bf4 {[%clk 01:27:20]} {[%emt
00:03:35]} Nf6 {[%clk 01:26:14]} {[%emt 00:02:31]} 7. e3 {[%clk 01:27:23]}
{[%emt 00:00:29]} Be7 {[%clk 01:24:45]} {[%emt 00:01:57]} 8. Bd3 {[%clk
01:26:59]} {[%emt 00:00:55]} Nbd7 {[%clk 01:22:58]} {[%emt 00:02:16]} 9. h3
{[%clk 01:26:50]} {[%emt 00:00:39]} Nf8 {[%clk 01:22:11]} {[%emt 00:01:17]} 10.
O-O {[%clk 01:26:51]} {[%emt 00:00:29]} Ne6 {[%clk 01:16:48]} {[%emt 00:05:54]}
11. Bh2 {[%clk 01:21:58]} {[%emt 00:05:23]} Bd6 {[%clk 01:14:15]} {[%emt
00:03:03]} 12. Ne5 {[%clk 01:21:39]} {[%emt 00:00:50]} O-O {[%clk 01:08:22]}
{[%emt 00:06:21]} 13. Rb1 {[%clk 01:12:55]} {[%emt 00:09:15]} Ng5 {[%clk
00:59:56]} {[%emt 00:08:55]} 14. Bf4 {[%clk 01:02:25]} {[%emt 00:11:01]} Ne6
{[%clk 00:46:19]} {[%emt 00:14:07]} 15. Bg3 {[%clk 01:01:59]} {[%emt 00:00:56]}
Re8 {[%clk 00:44:39]} {[%emt 00:02:09]} 16. Ne2 {[%clk 00:48:39]} {[%emt
00:13:50]} Nf8 {[%clk 00:42:41]} {[%emt 00:02:27]} 17. Nf3 {[%clk 00:48:13]}
{[%emt 00:00:58]} Ne4 {[%clk 00:42:14]} {[%emt 00:00:57]} 18. Bxd6 {[%clk
00:48:11]} {[%emt 00:00:33]} Qxd6 {[%clk 00:40:07]} {[%emt 00:02:36]} 19. Qc2
{[%clk 00:46:03]} {[%emt 00:02:38]} Ng6 {[%clk 00:34:41]} {[%emt 00:05:53]} 20.
Bxe4 {[%clk 00:43:01]} {[%emt 00:03:34]} Rxe4 {[%clk 00:33:38]} {[%emt
00:01:33]} 21. Ng3 {[%clk 00:41:33]} {[%emt 00:01:58]} Re8 {[%clk 00:33:19]}
{[%emt 00:00:49]} 22. Qc5 {[%clk 00:40:47]} {[%emt 00:01:16]} Qf6 {[%clk
00:32:45]} {[%emt 00:00:57]} 23. Nh5 {[%clk 00:40:55]} {[%emt 00:00:29]} Qd8
{[%clk 00:17:25]} {[%emt 00:15:51]} 24. Ng3 {[%clk 00:39:34]} {[%emt 00:01:51]}
Nh4 {[%clk 00:15:17]} {[%emt 00:02:38]} 25. Ne5 {[%clk 00:35:29]} {[%emt
00:04:35]} Qg5 {[%clk 00:14:30]} {[%emt 00:01:13]} 26. Qc1 {[%clk 00:31:19]}
{[%emt 00:04:45]} f6 {[%clk 00:13:18]} {[%emt 00:01:38]} 27. Nd3 {[%clk
00:31:15]} {[%emt 00:00:37]} Bf5 {[%clk 00:11:59]} {[%emt 00:01:48]} 28. Nf4
{[%clk 00:21:01]} {[%emt 00:10:46]} Bxb1 {[%clk 00:11:33]} {[%emt 00:00:57]} 29.
Qxb1 {[%clk 00:21:30]} Re7 {[%clk 00:08:12]} {[%emt 00:03:48]} 30. Kh2 {[%clk
00:21:05]} {[%emt 00:00:57]} Rae8 {[%clk 00:07:48]} {[%emt 00:00:53]} 31. Qd3
{[%clk 00:21:21]} {[%emt 00:00:15]} g6 {[%clk 00:03:31]} {[%emt 00:04:48]} 32.
a3 {[%clk 00:20:46]} {[%emt 00:01:05]} Nf5 {[%clk 00:03:32]} {[%emt 00:00:28]}
33. Nxf5 {[%clk 00:21:01]} {[%emt 00:00:15]} Qxf5 {[%clk 00:03:57]} {[%emt
00:00:05]} 34. Qxf5 {[%clk 00:21:23]} {[%emt 00:00:08]} gxf5 {[%clk 00:04:25]}
{[%emt 00:00:02]} 35. Rc1 {[%clk 00:21:14]} {[%emt 00:00:40]} Kf7 {[%clk
00:04:26]} {[%emt 00:00:28]} 36. g3 {[%clk 00:21:30]} {[%emt 00:00:15]} Rd7
{[%clk 00:03:47]} {[%emt 00:01:06]} 37. Kg2 {[%clk 00:20:59]} {[%emt 00:01:04]}
Ke7 {[%clk 00:03:46]} {[%emt 00:00:30]} 38. Nd3 {[%clk 00:21:07]} {[%emt
00:00:23]} Kd6 {[%clk 00:03:34]} {[%emt 00:00:38]} 39. Kf3 {[%clk 00:21:03]}
{[%emt 00:00:37]} Rc7 {[%clk 00:02:06]} {[%emt 00:01:56]} 40. Kf4 {[%clk
00:21:17]} {[%emt 00:00:18]} b6 {[%clk 00:02:23]} {[%emt 00:00:13]} 41. b4
{[%clk 00:21:41]} {[%emt 00:00:06]} Ke6 {[%clk 00:02:05]} {[%emt 00:00:45]} 42.
a4 {[%clk 00:20:46]} {[%emt 00:01:28]} Rb8 {[%clk 00:00:58]} {[%emt 00:01:36]}
1/2-1/2